bitfinex/quotes_BTCUSD_20241205
["timestamp","ask_amount","ask_price","bid_price","bid_amount"]
[1733408981198,0.09967605,102640.0,102620.0,0.79103304]
[1733408981412,0.29453205,102640.0,102620.0,0.59615004]
[1733408981636,0.48939605,102640.0,102620.0,0.59615004]
[1733408981870,0.29453205,102640.0,102620.0,0.40126804]
[1733408982094,0.29453205,102640.0,102620.0,0.59615404]
[1733408982312,0.194856,102640.0,102620.0,0.59615404]
[1733408982525,0.194856,102640.0,102620.0,0.59509004]
[1733408982960,0.513896,102650.0,102620.0,0.67408804]
[1733408983190,0.41872105,102650.0,102630.0,0.30380804]
[1733408983423,0.41872105,102650.0,102630.0,0.49867504]
[1733408983647,0.22387605,102650.0,102630.0,0.49867304]
[1733408983862,0.22387605,102650.0,102630.0,0.59717304]
[1733408984102,0.41871305,102650.0,102630.0,0.59717304]
[1733408984313,0.22387605,102650.0,102630.0,0.79203804]
[1733408984543,0.22387605,102650.0,102630.0,0.59717204]
[1733408984779,0.41871405,102650.0,102630.0,0.59717204]
[1733408985006,0.53372778,102660.0,102630.0,0.79203504]
[1733408985236,0.82823683,102660.0,102640.0,0.10894104]
[1733408985957,0.80846805,102660.0,102640.0,0.10894104]
[1733408986183,0.41880405,102660.0,102640.0,0.49865104]
[1733408986396,0.41879405,102660.0,102640.0,0.38971]
[1733408986614,0.41897059,102660.0,102640.0,0.293339]
[1733408986831,0.41897059,102660.0,102640.0,0.488194]
[1733408987056,0.41897059,102660.0,102640.0,0.488185]
[1733408987311,0.14485259,102660.0,102640.0,0.683033]
[1733408987547,0.00017654,102660.0,102650.0,0.194836]
[1733408988242,0.00017654,102660.0,102650.0,0.19581012]
[1733408988483,0.00017654,102660.0,102650.0,0.29429212]
[1733408988726,0.00017654,102660.0,102650.0,0.40225904]
[1733408989845,0.51497,102680.0,102660.0,0.194817]
[1733408990094,0.51497,102680.0,102660.0,0.389627]
[1733408990330,0.1254,102680.0,102670.0,0.194798]
[1733408990567,0.130333,102690.0,102660.0,0.87314004]
[1733408990785,0.42477105,102690.0,102660.0,0.764199]
[1733408991003,0.42477105,102690.0,102660.0,0.764196]
[1733408991193,0.23000905,102690.0,102660.0,0.764196]
[1733408991456,0.61953905,102690.0,102660.0,0.569387]
[1733408992318,0.61953905,102690.0,102660.0,0.37458]
[1733408992550,0.81431505,102690.0,102660.0,0.29328]
[1733408992771,0.29446305,102680.0,102660.0,0.098473]
[1733408993013,0.48925105,102680.0,102660.0,0.098473]
[1733408993237,0.09967605,102680.0,102660.0,0.293289]
[1733408993980,0.29445805,102680.0,102660.0,0.098473]
[1733408995547,0.194782,102680.0,102660.0,0.29329]
[1733408996942,0.130333,102690.0,102660.0,0.30709009]
[1733408997411,0.130333,102690.0,102670.0,0.194789]
[1733408997630,0.130333,102690.0,102670.0,0.389579]
[1733408997859,0.130333,102690.0,102670.0,0.488042]
[1733408998339,0.130333,102690.0,102670.0,0.293252]
[1733408998562,0.130333,102690.0,102670.0,0.488041]
[1733408998818,0.001733,102690.0,102680.0,0.30372004]
[1733408999042,0.001733,102690.0,102680.0,0.194779]
[1733408999252,0.001733,102690.0,102680.0,0.29420679]
[1733408999472,0.001733,102690.0,102680.0,0.293233]
[1733408999695,0.001733,102690.0,102680.0,0.58335009]
[1733408999913,0.151734,102720.0,102700.0,0.57990504]
[1733409000233,0.151734,102720.0,102710.0,0.30463759]
[1733409000448,0.151734,102720.0,102710.0,0.40334009]
[1733409000702,0.151734,102720.0,102710.0,0.50176509]
[1733409000944,0.151734,102720.0,102710.0,0.51916224]
[1733409001161,0.0017336,102750.0,102730.0,0.194684]
[1733409001387,0.0017336,102750.0,102740.0,0.40328309]
[1733409001388,0.00232235,102750.0,102740.0,0.40328309]
[1733409001852,0.00232235,102750.0,102740.0,0.098397]
[1733409002083,0.00232235,102750.0,102740.0,0.293063]
[1733409002563,0.00232235,102750.0,102740.0,0.098397]
[1733409003005,0.00232235,102750.0,102740.0,0.40297729]
[1733409003226,0.00232235,102750.0,102740.0,0.40200404]
[1733409003718,0.00232235,102750.0,102740.0,0.098397]
[1733409003943,0.19696935,102750.0,102740.0,0.098397]
[1733409004179,0.194704,102720.0,102700.0,0.194731]
[1733409004395,0.389423,102720.0,102700.0,0.01690994]
[1733409004618,0.194733,102710.0,102680.0,0.30370104]
[1733409004856,0.389466,102710.0,102680.0,0.48920305]
[1733409005080,0.194733,102710.0,102690.0,0.19475]
[1733409005306,0.389466,102710.0,102690.0,0.19475]
[1733409005552,0.48914205,102710.0,102690.0,0.09738]
[1733409005765,0.194741,102700.0,102690.0,0.09738]
[1733409006229,0.68446844,102710.0,102690.0,0.09738]
[1733409006498,0.194741,102700.0,102690.0,0.09738]
[1733409007410,0.29441705,102700.0,102690.0,0.09738]
[1733409007856,0.58479139,102710.0,102690.0,0.09738]
[1733409008077,0.48972944,102710.0,102690.0,0.292138]
[1733409008295,0.00058839,102710.0,102700.0,0.194741]
[1733409008766,0.00058839,102710.0,102690.0,0.292128]
[1733409008981,0.00058839,102710.0,102690.0,0.68163]
[1733409009211,0.19472299,102710.0,102690.0,0.486878]
[1733409009435,0.38945899,102710.0,102690.0,0.09738]
[1733409009880,0.665216,102720.0,102690.0,0.30370104]
[1733409010103,0.88319042,102720.0,102690.0,0.49844704]
[1733409010326,0.53798542,102720.0,102690.0,0.69318804]
[1733409010547,0.194723,102710.0,102690.0,0.584246]
[1733409010776,0.194723,102710.0,102690.0,0.389496]
[1733409010990,0.194723,102710.0,102690.0,0.389495]
[1733409011221,0.389456,102710.0,102690.0,0.09737]
[1733409011464,0.1964732,102700.0,102690.0,0.09737]
[1733409011953,0.29614925,102700.0,102690.0,0.09737]
[1733409012631,0.62809029,102700.0,102690.0,0.09737]
[1733409012860,0.63996,102690.0,102680.0,0.15]
[1733409013123,0.639995,102680.0,102630.0,0.19583906]
[1733409013360,0.389657,102660.0,102640.0,0.194854]
[1733409013588,0.29450405,102660.0,102640.0,0.3897]
[1733409013822,0.29450405,102660.0,102640.0,0.194846]
[1733409014080,0.29450405,102660.0,102630.0,0.30380704]
[1733409014081,0.68416505,102660.0,102630.0,0.49867004]
[1733409014292,0.48933705,102660.0,102630.0,0.584593]
[1733409014516,0.29450405,102660.0,102630.0,0.4069489]
[1733409014737,0.194837,102650.0,102630.0,0.4069489]
[1733409014992,0.389684,102650.0,102630.0,0.0172219]
[1733409015222,0.389685,102650.0,102630.0,0.2120949]
[1733409015436,0.194855,102640.0,102630.0,0.0172219]
[1733409015653,0.29453105,102640.0,102630.0,0.00058839]
[1733409016375,0.55855466,102640.0,102630.0,0.00058839]
[1733409018388,0.39453105,102640.0,102630.0,0.00058839]
[1733409018625,0.55855466,102640.0,102630.0,0.00058839]
[1733409018835,0.58141316,102640.0,102630.0,0.00058839]
[1733409019057,0.55855466,102640.0,102630.0,0.00058839]
[1733409019272,0.90375466,102640.0,102630.0,0.00058839]
[1733409019504,0.73973105,102640.0,102630.0,0.00058839]
[1733409019924,0.90375466,102640.0,102630.0,0.00058839]
[1733409021331,0.73973105,102640.0,102630.0,0.00058839]
[1733409022195,0.90167388,102640.0,102630.0,0.00058839]
[1733409022423,1.23347388,102640.0,102630.0,0.00058839]
[1733409022689,1.00199749,102640.0,102630.0,3.9e-07]
[1733409022888,0.194874,102630.0,102620.0,0.0008661]
[1733409023111,0.45857366,102630.0,102620.0,0.00104264]
[1733409023364,0.58314269,102630.0,102620.0,0.00104264]
[1733409023813,0.294912,102610.0,102600.0,0.0008661]
[1733409024086,0.39458805,102610.0,102600.0,0.0008661]
[1733409024297,0.32658804,102610.0,102600.0,0.0008661]
[1733409025007,0.70148804,102610.0,102600.0,0.0008661]
[1733409025233,0.79940726,102610.0,102600.0,0.0008661]
[1733409025497,0.76740727,102610.0,102600.0,0.0008661]
[1733409025719,0.79405708,102610.0,102600.0,0.0008661]
[1733409025970,0.76740727,102610.0,102600.0,0.0008661]
[1733409026445,0.79075041,102610.0,102600.0,0.0008661]
[1733409026664,0.70148804,102610.0,102600.0,0.0008661]
[1733409026901,0.66948805,102610.0,102600.0,0.0008661]
[1733409027123,0.63951305,102610.0,102590.0,0.16402361]
[1733409027360,0.194931,102600.0,102580.0,0.55349061]
[1733409027596,0.44458805,102610.0,102580.0,0.55349161]
[1733409027818,0.63951305,102610.0,102590.0,0.194949]
[1733409028050,0.44458805,102610.0,102590.0,0.55392261]
[1733409028271,0.44458805,102610.0,102590.0,0.35897261]
[1733409028515,0.44458805,102610.0,102590.0,0.194949]
[1733409028516,0.63951105,102610.0,102590.0,0.194949]
[1733409028975,0.63951105,102610.0,102580.0,0.74845261]
[1733409028976,0.83443405,102610.0,102580.0,0.74845261]
[1733409029185,0.389877,102600.0,102570.0,0.68344201]
[1733409029405,0.50257048,102610.0,102580.0,0.194957]
[1733409029630,0.63952505,102610.0,102590.0,0.19495]
[1733409029897,0.194931,102600.0,102580.0,0.55393761]
[1733409030124,0.63952505,102610.0,102600.0,0.194931]
[1733409030125,0.15,102610.0,102600.0,0.194931]
[1733409030343,0.15,102610.0,102600.0,0.35895461]
[1733409030586,0.15,102610.0,102590.0,0.55390961]
[1733409030807,0.49857755,102610.0,102580.0,0.194956]
[1733409031046,0.44459705,102610.0,102590.0,0.35897361]
[1733409031260,0.63952105,102610.0,102590.0,0.35897361]
[1733409031488,0.83444605,102610.0,102590.0,0.35897361]
[1733409031723,0.63952105,102610.0,102590.0,0.35897361]
[1733409031984,0.83444905,102610.0,102590.0,0.35897361]
[1733409032202,0.83444905,102610.0,102590.0,0.16402361]
[1733409032470,0.194931,102600.0,102590.0,0.16402361]
[1733409032677,0.194931,102600.0,102580.0,0.56931661]
[1733409032862,0.83444805,102610.0,102590.0,0.19495]
[1733409033128,0.83444605,102610.0,102590.0,0.35897361]
[1733409033567,0.83444605,102610.0,102580.0,0.76427661]
[1733409034018,0.194932,102600.0,102580.0,0.37435861]
[1733409034266,0.48955405,102600.0,102580.0,0.015382]
[1733409034505,0.194951,102590.0,102580.0,0.0008658]
[1733409034719,0.29462705,102590.0,102580.0,0.0008658]
[1733409035381,0.98475066,102590.0,102580.0,0.0008658]
[1733409035599,1.08266988,102590.0,102580.0,0.0008658]
[1733409036068,0.81864627,102590.0,102580.0,0.0008658]
[1733409036286,0.814325,102610.0,102580.0,0.35985841]
[1733409036510,0.09985223,102600.0,102590.0,0.194949]
[1733409036750,0.29478423,102600.0,102580.0,0.3907818]
[1733409036994,0.48972423,102600.0,102580.0,0.1958208]
[1733409037426,0.55962406,102600.0,102580.0,0.0008658]
[1733409037654,0.55962406,102600.0,102580.0,0.1958338]
[1733409038118,0.75456606,102600.0,102580.0,0.1958338]
[1733409038592,0.75456606,102600.0,102580.0,0.0008658]
[1733409038808,0.48972423,102600.0,102580.0,0.1958338]
[1733409039270,0.19510818,102600.0,102580.0,0.3908018]
[1733409039493,0.39004818,102600.0,102580.0,0.1958338]
[1733409039732,0.39004818,102600.0,102580.0,0.0008658]
[1733409039927,0.19495,102590.0,102580.0,0.0008658]
[1733409040677,0.29478423,102600.0,102580.0,0.1958348]
[1733409040886,0.00017618,102600.0,102580.0,0.4730938]
[1733409041107,0.19510718,102600.0,102580.0,0.4730938]
[1733409041324,0.19510718,102600.0,102580.0,0.4730838]
[1733409041545,0.39004718,102600.0,102580.0,0.4730838]
[1733409041974,0.39004918,102600.0,102580.0,0.4730838]
[1733409042632,0.00017618,102600.0,102590.0,0.19495]
[1733409043109,0.00017618,102600.0,102590.0,0.19592465]
[1733409043330,0.00017618,102600.0,102590.0,0.19495]
[1733409044216,0.19491299,102610.0,102590.0,0.194935]
[1733409044475,0.194931,102600.0,102590.0,0.00017618]
[1733409044705,0.48951504,102610.0,102590.0,0.19512618]
[1733409044940,0.48951204,102610.0,102590.0,0.00017618]
[1733409045198,0.37520705,102600.0,102590.0,0.00017618]
[1733409045420,0.58793066,102600.0,102590.0,0.00017618]
[1733409046792,0.61522157,102600.0,102590.0,0.00017618]
[1733409047041,0.91274518,102600.0,102590.0,1.8e-07]
[1733409047267,2.47087349,102600.0,102590.0,1.8e-07]
[1733409047511,2.20893066,102600.0,102590.0,1.8e-07]
[1733409048421,2.21066346,102600.0,102590.0,1.8e-07]
[1733409048657,2.3302529,102600.0,102590.0,1.8e-07]
[1733409049841,2.39427651,102600.0,102590.0,1.8e-07]
[1733409050049,2.2302529,102600.0,102590.0,1.8e-07]
[1733409050292,2.32817212,102600.0,102590.0,1.8e-07]
[1733409051219,2.42817212,102600.0,102590.0,1.8e-07]
[1733409051437,2.2302529,102600.0,102590.0,1.8e-07]
[1733409055031,0.31592929,102600.0,102590.0,1.8e-07]
[1733409055271,0.0017328,102600.0,102590.0,0.16402379]
[1733409055509,0.0017328,102600.0,102590.0,0.19495018]
[1733409058291,0.0017328,102600.0,102590.0,0.35994848]
[1733409058525,0.0017328,102600.0,102590.0,0.35897379]
[1733409058778,0.0017328,102600.0,102590.0,0.45864984]
[1733409058997,0.0017328,102600.0,102590.0,0.53454984]
[1733409059214,0.0017328,102600.0,102590.0,0.37052623]
[1733409059629,0.0017328,102600.0,102590.0,0.27085018]
[1733409060310,0.0017328,102600.0,102590.0,0.52541624]
[1733409060741,0.0017328,102600.0,102590.0,0.54841624]
[1733409060960,0.0017328,102600.0,102590.0,0.64841624]
[1733409062273,0.0017328,102600.0,102590.0,0.65241624]
[1733409062498,0.0017328,102600.0,102590.0,0.1067664]
[1733409062689,0.0017328,102600.0,102590.0,0.0308664]
[1733409062690,0.1966638,102600.0,102590.0,0.0308664]
[1733409062872,0.31600623,102600.0,102590.0,0.0308664]
[1733409063300,0.31600623,102600.0,102590.0,0.0278664]
[1733409064149,0.71066604,102600.0,102590.0,0.0278664]
[1733409064355,0.90559704,102600.0,102590.0,0.0278664]
[1733409064855,0.90559704,102600.0,102590.0,0.0238664]
[1733409065286,0.88593066,102600.0,102590.0,0.0238664]
[1733409066944,0.72190705,102600.0,102590.0,0.0238664]
[1733409067150,0.3452,102610.0,102600.0,0.194931]
[1733409067360,0.239881,102630.0,102610.0,0.194903]
[1733409067567,0.29455705,102630.0,102600.0,0.194931]
[1733409067801,0.48944005,102630.0,102610.0,0.194903]
[1733409068001,0.48944005,102630.0,102600.0,0.389849]
[1733409068127,0.194893,102620.0,102600.0,0.389835]
[1733409068335,0.389795,102620.0,102600.0,0.584758]
[1733409068540,0.584704,102620.0,102600.0,0.194917]
[1733409068794,0.389795,102620.0,102600.0,0.389839]
[1733409069557,0.584699,102620.0,102600.0,0.389839]
[1733409069780,0.389795,102620.0,102600.0,0.389839]
[1733409070252,0.194921,102610.0,102590.0,0.4137474]
[1733409070456,0.194921,102610.0,102590.0,0.23401658]
[1733409070457,0.389843,102610.0,102590.0,0.23401658]
[1733409070662,0.194931,102600.0,102590.0,0.0238664]
[1733409070866,0.29460705,102600.0,102590.0,0.0238664]
[1733409071101,0.55654988,102600.0,102590.0,0.0238664]
[1733409072002,0.57954988,102600.0,102590.0,0.0238664]
[1733409072439,0.67954988,102600.0,102590.0,0.0238664]
[1733409072942,0.57954988,102600.0,102590.0,0.0238664]
[1733409073168,0.48163066,102600.0,102590.0,0.0238664]
[1733409073637,0.50128233,102600.0,102590.0,0.0238664]
[1733409073866,0.33725872,102600.0,102590.0,0.0238664]
[1733409074099,0.50128233,102600.0,102590.0,0.0238664]
[1733409074505,0.33725872,102600.0,102590.0,0.0238664]
[1733409074992,0.12267605,102600.0,102590.0,0.0238664]
[1733409075242,0.023,102600.0,102590.0,0.0238664]
[1733409075481,0.023,102600.0,102580.0,0.37609299]
[1733409075703,0.02317191,102600.0,102580.0,0.37608999]
[1733409075946,0.02317191,102600.0,102590.0,0.27715]
[1733409076188,0.21826287,102660.0,102620.0,0.0822]
[1733409076428,0.0017316,102660.0,102650.0,0.194836]
[1733409076906,0.0017316,102660.0,102650.0,0.35983375]
[1733409077150,0.0017316,102660.0,102650.0,0.45853566]
[1733409077621,0.0017316,102660.0,102650.0,0.65933566]
[1733409077856,0.15,102670.0,102650.0,1.04899266]
[1733409078119,0.15,102670.0,102660.0,0.64808029]
[1733409078371,0.15,102670.0,102660.0,0.64710649]
[1733409078602,0.0017322,102700.0,102690.0,0.19476]
[1733409079046,0.38942,102720.0,102690.0,0.19476]
[1733409079270,0.48909605,102720.0,102690.0,0.389503]
[1733409079505,0.48910305,102720.0,102690.0,0.194743]
[1733409079945,0.48910305,102720.0,102680.0,0.194768]
[1733409079946,0.389458,102710.0,102680.0,0.389534]
[1733409080165,0.48968533,102720.0,102690.0,0.194748]
[1733409080422,0.68440333,102720.0,102690.0,0.389498]
[1733409080694,0.48968533,102720.0,102690.0,0.584248]
[1733409080912,0.48968533,102720.0,102700.0,0.194737]
[1733409080913,0.29496933,102720.0,102700.0,0.194737]
[1733409081133,0.00058828,102720.0,102710.0,0.194723]
[1733409081801,0.00139108,102730.0,102710.0,0.097361]
[1733409082028,0.1012435,102730.0,102710.0,0.292067]
[1733409082247,0.2959285,102730.0,102710.0,0.292067]
[1733409082676,0.4906305,102730.0,102710.0,0.097361]
[1733409082902,0.29438005,102720.0,102710.0,0.097361]
[1733409083140,0.64699349,102720.0,102710.0,0.097361]
[1733409083614,0.64872689,102720.0,102710.0,0.097361]
[1733409083829,0.74872689,102720.0,102710.0,0.097361]
[1733409084051,0.39611345,102720.0,102710.0,0.097361]
[1733409084339,0.64872689,102720.0,102710.0,0.097361]
[1733409085294,0.29611345,102720.0,102710.0,0.097361]
[1733409086005,0.0017334,102720.0,102710.0,0.39273368]
[1733409086232,0.0017334,102720.0,102710.0,0.097361]
[1733409086904,0.0017334,102720.0,102710.0,0.292084]
[1733409087866,0.0017334,102720.0,102710.0,0.39176005]
[1733409088729,0.0017334,102720.0,102710.0,0.74437349]
[1733409089140,0.38757439,102750.0,102720.0,0.194687]
[1733409089350,0.38757439,102750.0,102730.0,0.194683]
[1733409089793,0.38757439,102750.0,102730.0,0.389367]
[1733409090057,0.38757439,102750.0,102730.0,0.194683]
[1733409090754,0.194676,102740.0,102720.0,0.09752837]
[1733409090980,0.194685,102730.0,102720.0,0.09752837]
[1733409091197,0.29436105,102730.0,102720.0,0.09752837]
[1733409091624,0.584038,102740.0,102720.0,0.09752837]
[1733409091860,0.194685,102730.0,102720.0,0.09752837]
[1733409092080,0.29436105,102730.0,102720.0,0.09752837]
[1733409093887,0.389357,102740.0,102720.0,0.09752837]
[1733409094122,0.12668499,102730.0,102720.0,0.09752837]
[1733409094328,0.48903005,102740.0,102720.0,0.09752837]
[1733409094539,0.194685,102730.0,102720.0,0.09752837]
[1733409094754,0.0017334,102730.0,102720.0,0.29223037]
[1733409095016,0.0017334,102730.0,102720.0,0.64451986]
[1733409095240,0.0017334,102730.0,102720.0,0.66610842]
[1733409097002,0.0017334,102730.0,102720.0,1.01872186]
[1733409097235,0.0017334,102730.0,102720.0,0.66610842]
[1733409097444,0.0017334,102730.0,102720.0,1.01872186]
[1733409098272,0.0017334,102730.0,102720.0,0.66610842]
[1733409098774,0.0017334,102730.0,102720.0,0.09752837]
[1733409098937,0.1964184,102730.0,102720.0,0.09752837]
[1733409100077,0.29609445,102730.0,102720.0,0.09752837]
[1733409100957,0.1964184,102730.0,102720.0,0.09752837]
[1733409101168,0.0017334,102730.0,102720.0,0.29223237]
[1733409101428,0.0017334,102730.0,102720.0,0.44223237]
[1733409102093,0.1964184,102730.0,102720.0,0.24752837]
[1733409102308,0.29609445,102730.0,102720.0,0.24752837]
[1733409102518,0.54870789,102730.0,102720.0,0.24752837]
[1733409103000,1.19182711,102730.0,102720.0,0.19174554]
[1733409103208,1.31482711,102730.0,102720.0,0.19174554]
[1733409103440,0.86962711,102730.0,102720.0,0.19174554]
[1733409104127,0.77170789,102730.0,102720.0,0.19174554]
[1733409105469,0.87170789,102730.0,102720.0,0.16982849]
[1733409106108,0.87170789,102730.0,102720.0,0.17069439]
[1733409107707,1.21690789,102730.0,102720.0,0.17069439]
[1733409110273,1.11690789,102730.0,102720.0,0.17069439]
[1733409112210,0.76962711,102730.0,102720.0,0.15122439]
[1733409112427,0.76962711,102730.0,102720.0,9e-07]
[1733409113295,0.67170789,102730.0,102720.0,9e-07]
[1733409114443,0.82170789,102730.0,102720.0,9e-07]
[1733409114935,0.82170789,102730.0,102650.0,0.0008667]
[1733409114936,0.394765,102690.0,102650.0,0.0008667]
[1733409115145,0.194817,102660.0,102650.0,0.0008667]
[1733409115362,0.29449305,102660.0,102650.0,0.0008667]
[1733409115802,0.194817,102660.0,102650.0,0.0008667]
[1733409116011,0.389569,102680.0,102650.0,0.1956887]
[1733409116240,0.83444505,102680.0,102650.0,0.39148574]
[1733409116467,0.83444505,102680.0,102660.0,0.194803]
[1733409116468,0.539979,102680.0,102660.0,0.194803]
[1733409116900,0.734768,102680.0,102660.0,0.194803]
[1733409117107,0.734768,102680.0,102660.0,0.389609]
[1733409117335,0.734769,102680.0,102660.0,0.389609]
[1733409117560,0.734769,102680.0,102660.0,0.194803]
[1733409117812,0.929563,102680.0,102660.0,0.194803]
[1733409118253,0.44487605,102680.0,102650.0,0.19628198]
[1733409118478,0.194809,102670.0,102650.0,0.00145498]
[1733409118697,0.584432,102670.0,102650.0,0.19629098]
[1733409118954,0.584432,102670.0,102650.0,0.00145498]
[1733409118955,0.194817,102660.0,102650.0,0.00145498]
[1733409120502,0.389617,102670.0,102650.0,0.19629098]
[1733409120711,0.194817,102660.0,102650.0,0.19629098]
[1733409120920,0.584431,102670.0,102640.0,0.42485181]
[1733409121135,0.194819,102660.0,102640.0,0.7195459]
[1733409121354,0.38962,102670.0,102650.0,0.194836]
[1733409121565,0.38962,102670.0,102650.0,0.389672]
[1733409122043,0.389534,102690.0,102670.0,0.19479]
[1733409122296,0.194779,102680.0,102660.0,0.39058309]
[1733409122533,0.68398505,102690.0,102670.0,0.194798]
[1733409122991,0.194799,102670.0,102640.0,0.03533785]
[1733409123239,0.44744944,102650.0,102640.0,0.00017204]
[1733409123446,0.54712549,102650.0,102640.0,0.00017204]
[1733409123668,0.72992549,102650.0,102640.0,0.00017204]
[1733409123896,1.17512549,102650.0,102640.0,0.00017204]
[1733409124110,1.17512549,102650.0,102640.0,4e-08]
[1733409124111,2.08884471,102650.0,102640.0,4e-08]
[1733409124372,0.194893,102620.0,102610.0,0.0008669]
[1733409124583,0.29456905,102620.0,102610.0,0.0008669]
[1733409124789,0.734964,102630.0,102610.0,0.0008669]
[1733409125006,0.194893,102620.0,102610.0,0.0008669]
[1733409125229,0.63975005,102630.0,102610.0,0.0008669]
[1733409125445,0.3452,102630.0,102610.0,0.0008669]
[1733409125677,0.194893,102620.0,102610.0,0.0008669]
[1733409125889,0.3452,102630.0,102620.0,0.194893]
[1733409126096,0.3452,102630.0,102610.0,0.1957669]
[1733409126336,0.3452,102630.0,102610.0,0.3906659]
[1733409126337,0.734959,102630.0,102610.0,0.3906659]
[1733409126599,0.734959,102630.0,102610.0,0.0008669]
[1733409126823,0.929851,102630.0,102610.0,0.0008669]
[1733409127043,0.734959,102630.0,102610.0,0.1957789]
[1733409127281,0.540075,102630.0,102610.0,0.1957789]
[1733409127505,0.734959,102630.0,102610.0,0.3906909]
[1733409127712,0.3452,102630.0,102610.0,0.19674438]
[1733409127924,0.540085,102630.0,102610.0,0.1957699]
[1733409128154,0.734975,102630.0,102610.0,0.1957699]
[1733409128620,0.194893,102620.0,102610.0,0.0008669]
[1733409129780,0.389775,102630.0,102610.0,0.1957789]
[1733409129987,0.584666,102630.0,102610.0,0.1957789]
[1733409130215,0.194893,102620.0,102610.0,0.0008669]
[1733409132198,0.194858,102640.0,102610.0,0.0008669]
[1733409132404,0.4895761,102640.0,102610.0,0.1957739]
[1733409132618,0.4895761,102640.0,102610.0,0.3906689]
[1733409132855,0.4895761,102640.0,102620.0,0.194893]
[1733409133321,0.38990005,102640.0,102620.0,0.194893]
[1733409133545,0.58476905,102640.0,102620.0,0.194893]
[1733409134390,0.194874,102630.0,102610.0,0.5855709]
[1733409134638,0.194874,102630.0,102610.0,0.68524695]
[1733409135067,0.58476705,102640.0,102620.0,0.194893]
[1733409135273,0.58476705,102640.0,102620.0,0.389786]
[1733409135274,0.38990005,102640.0,102620.0,0.389786]
[1733409135913,0.58476805,102640.0,102620.0,0.389786]
[1733409136117,0.38990005,102640.0,102620.0,0.389786]
[1733409136329,0.19503405,102640.0,102620.0,0.389786]
[1733409136559,0.00017605,102640.0,102630.0,0.194874]
[1733409136773,0.00017605,102640.0,102630.0,0.45964117]
[1733409137000,0.00017605,102640.0,102630.0,0.36985005]
[1733409137261,0.00017605,102640.0,102630.0,0.40726614]
[1733409137493,0.34429931,102670.0,102630.0,0.40726614]
[1733409137703,0.194788,102680.0,102650.0,0.217834]
[1733409137918,0.09967605,102670.0,102650.0,0.023]
[1733409138127,0.09967605,102670.0,102640.0,0.194845]
[1733409138405,0.25488405,102670.0,102640.0,0.5538038]
[1733409138660,0.44969405,102670.0,102640.0,0.7486498]
[1733409138867,0.25488405,102670.0,102650.0,0.194836]
[1733409139303,0.25487705,102670.0,102650.0,0.194836]
[1733409139506,0.06007605,102670.0,102650.0,0.389672]
[1733409139706,0.06007605,102670.0,102650.0,0.5537888]
[1733409139950,0.25487505,102670.0,102650.0,0.5537888]
[1733409140341,0.389578,102680.0,102650.0,0.7486158]
[1733409140558,0.68404505,102680.0,102650.0,0.5537798]
[1733409140786,0.68404705,102680.0,102650.0,0.389662]
[1733409141046,0.29446205,102680.0,102650.0,0.5537708]
[1733409141251,0.7441159,102690.0,102670.0,0.1641168]
[1733409141457,0.7441159,102690.0,102660.0,0.194808]
[1733409141458,0.194779,102680.0,102660.0,0.194808]
[1733409141677,0.29445505,102680.0,102640.0,0.3589598]
[1733409141884,0.194807,102670.0,102640.0,0.65348985]
[1733409142116,0.48926005,102680.0,102650.0,0.3589518]
[1733409142320,0.48926005,102680.0,102650.0,0.5537798]
[1733409142534,0.29464343,102680.0,102650.0,0.1641168]
[1733409142744,0.194808,102670.0,102640.0,0.65348285]
[1733409142953,0.48943043,102680.0,102650.0,0.5537698]
[1733409143165,0.48943043,102680.0,102650.0,0.3589428]
[1733409143166,0.194798,102670.0,102650.0,0.3589428]
[1733409143838,0.194798,102670.0,102650.0,0.389654]
[1733409144054,0.68422443,102680.0,102650.0,0.389654]
[1733409144223,0.194799,102670.0,102650.0,0.389652]
[1733409144854,0.194799,102670.0,102640.0,0.45863385]
[1733409145091,0.68422543,102680.0,102650.0,0.3589388]
[1733409145501,0.194799,102670.0,102650.0,0.5537748]
[1733409145860,0.389608,102670.0,102650.0,0.3589388]
[1733409146278,0.194799,102670.0,102650.0,0.3589388]
[1733409146484,0.389606,102670.0,102650.0,0.1641168]
[1733409146683,0.29463943,102680.0,102650.0,0.3589528]
[1733409146892,0.68422843,102680.0,102650.0,0.3589528]
[1733409147211,0.48943043,102680.0,102660.0,0.3589338]
[1733409147416,0.48943043,102680.0,102660.0,0.194817]
[1733409147634,0.00017638,102680.0,102670.0,0.1641168]
[1733409147996,0.00017638,102680.0,102670.0,0.3589148]
[1733409148356,0.00017638,102680.0,102660.0,0.65341785]
[1733409148559,0.29448505,102670.0,102650.0,0.15]
[1733409148770,0.194817,102660.0,102650.0,0.15]
[1733409148935,0.2864497,102660.0,102650.0,0.15]
[1733409150427,0.30572379,102660.0,102650.0,0.15]
[1733409150983,0.2864497,102660.0,102650.0,0.15]
[1733409152388,0.194836,102650.0,102640.0,0.07740875]
[1733409152638,0.194836,102650.0,102630.0,0.7495766]
[1733409152856,0.194836,102650.0,102630.0,0.5547106]
[1733409153058,0.194836,102650.0,102630.0,0.7495746]
[1733409153508,0.194836,102650.0,102630.0,0.5547096]
[1733409153957,0.389683,102650.0,102630.0,0.3598456]
[1733409154156,0.29453105,102640.0,102630.0,0.0008668]
[1733409154435,0.93944442,102640.0,102630.0,0.0008668]
[1733409154667,0.194893,102620.0,102610.0,0.0008669]
[1733409154887,0.33966905,102620.0,102610.0,0.0008669]
[1733409155337,0.78486905,102620.0,102610.0,0.0008669]
[1733409155565,0.78486905,102620.0,102610.0,0.00104295]
[1733409156192,0.88278827,102620.0,102610.0,0.00104295]
[1733409156847,0.78486905,102620.0,102610.0,0.00104295]
[1733409158457,0.96016905,102620.0,102610.0,0.00104295]
[1733409158893,0.60208585,102620.0,102610.0,0.00104295]
[1733409159348,0.75208585,102620.0,102610.0,0.00104295]
[1733409159776,0.75058585,102620.0,102610.0,0.00104295]
[1733409159980,0.68438827,102620.0,102610.0,0.00104295]
[1733409160514,0.78438827,102620.0,102610.0,0.00104295]
[1733409160937,0.78646905,102620.0,102610.0,0.00104295]
[1733409161155,0.80617946,102620.0,102610.0,0.00104295]
[1733409161591,0.70617946,102620.0,102610.0,0.00104295]
[1733409161807,0.48577946,102620.0,102610.0,0.00104295]
[1733409162269,0.48577946,102620.0,102610.0,0.36007175]
[1733409162270,0.173,102620.0,102610.0,0.36007175]
[1733409162484,0.173,102620.0,102610.0,0.00104295]
[1733409162712,0.173,102620.0,102610.0,0.16515975]
[1733409162924,0.173,102620.0,102610.0,0.36007175]
[1733409163140,0.173,102620.0,102610.0,0.35848592]
[1733409164264,0.173,102620.0,102610.0,0.44790891]